bitfinex/quotes_BTCUSD_20250907
["timestamp","ask_amount","ask_price","bid_price","bid_amount"]
[1757251029763,0.7322064,111080.0,111070.0,0.00706458]
[1757251029967,0.7322064,111080.0,111070.0,0.00931541]
[1757251030179,0.7322064,111080.0,111070.0,0.03633845]
[1757251031208,0.5829664,111080.0,111070.0,0.03633845]
[1757251031596,0.7322064,111080.0,111070.0,0.03633845]
[1757251031780,0.7322064,111080.0,111070.0,0.21640507]
[1757251031981,0.7322064,111080.0,111070.0,0.03408762]
[1757251032179,0.7322064,111080.0,111070.0,0.03633845]
[1757251032397,0.4222064,111080.0,111070.0,0.03633845]
[1757251033279,0.2729664,111080.0,111070.0,0.03633845]
[1757251033739,0.4222064,111080.0,111070.0,0.03633845]
[1757251034110,0.2729664,111080.0,111070.0,0.03633845]
[1757251034313,0.4222064,111080.0,111070.0,0.03633845]
[1757251039056,0.2729664,111080.0,111070.0,0.03633845]
[1757251039259,0.4221664,111080.0,111070.0,0.03633845]
[1757251043761,0.09291599,111080.0,111070.0,0.21640507]
[1757251044124,0.4221664,111080.0,111070.0,0.21415424]
[1757251044620,0.2729664,111080.0,111070.0,0.21415424]
[1757251045619,0.18105041,111080.0,111070.0,0.21415424]
[1757251045819,0.001,111080.0,111070.0,0.23900424]
[1757251046039,0.18105041,111080.0,111070.0,0.23900424]
[1757251046910,0.001,111080.0,111070.0,0.23900424]
[1757251048544,0.18105041,111080.0,111070.0,0.23900424]
[1757251050031,0.18105041,111080.0,111070.0,0.38824424]
[1757251050679,0.18105041,111080.0,111070.0,0.23900424]
[1757251050891,0.18105041,111080.0,111070.0,0.38824424]
[1757251057322,0.18005041,111080.0,111070.0,0.38820424]
[1757251058432,0.18005041,111080.0,111070.0,0.23900424]
[1757251058633,0.18005041,111080.0,111070.0,0.38820424]
[1757251060726,0.18005041,111080.0,111070.0,0.38920424]
[1757251061144,0.18005041,111080.0,111070.0,0.38820424]
[1757251061657,0.18005041,111080.0,111070.0,0.38920424]
[1757251071692,0.15225903,111090.0,111080.0,0.2]
[1757251071889,0.15225903,111090.0,111080.0,0.20517]
[1757251071890,0.24417502,111090.0,111080.0,0.20517]
[1757251072325,0.24417502,111090.0,111080.0,0.23219003]
[1757251072958,0.24417502,111090.0,111080.0,0.20517]
[1757251073843,0.24517502,111090.0,111080.0,0.20517]
[1757251092729,0.24517502,111090.0,111080.0,0.35517]
[1757251093973,0.24417502,111090.0,111080.0,0.35517]
[1757251094539,0.24417502,111090.0,111080.0,0.35617]
[1757251094970,0.1800342,111090.0,111080.0,0.53622041]
[1757251095633,0.1800342,111090.0,111080.0,0.56323888]
[1757251101060,0.1800342,111090.0,111080.0,0.56323888]
[1757251102757,2.1890189,111100.0,111080.0,0.56323888]
[1757251102992,2.28093489,111100.0,111090.0,0.15238]
[1757251103203,2.28093489,111100.0,111090.0,0.15449]
[1757251104877,2.28193489,111100.0,111090.0,0.15449]
[1757251106102,2.28193489,111100.0,111090.0,0.16352887]
[1757251108583,2.28193489,111100.0,111090.0,0.15449]
[1757251110086,2.28098967,111100.0,111090.0,0.15449]
[1757251114089,2.43022967,111100.0,111090.0,0.15449]
[1757251118120,2.22035174,111100.0,111090.0,0.15449]
[1757251118330,2.40038455,111100.0,111090.0,0.15449]
[1757251123187,2.25114455,111100.0,111090.0,0.15449]
[1757251123342,2.25114455,111100.0,111090.0,0.33677462]
[1757251123541,2.25114455,111100.0,111090.0,0.3345242]
[1757251124159,2.25014455,111100.0,111090.0,0.34342957]
[1757251124544,2.25114455,111100.0,111090.0,0.34342957]
[1757251128427,2.07431244,111100.0,111090.0,0.34342957]
[1757251128656,1.79336274,111100.0,111090.0,0.34342957]
[1757251129084,1.79336274,111100.0,111090.0,0.46389543]
[1757251130603,1.79236274,111100.0,111090.0,0.46389543]
[1757251131039,1.79236274,111100.0,111090.0,0.46489543]
[1757251131261,1.79236274,111100.0,111090.0,0.46689543]
[1757251140389,1.78262474,111100.0,111090.0,0.46689543]
[1757251140600,1.78262474,111100.0,111090.0,0.46669543]
[1757251140601,1.96264274,111100.0,111090.0,0.46669543]
[1757251141039,1.96264274,111100.0,111090.0,0.31757543]
[1757251141280,1.96264274,111100.0,111090.0,0.46669543]
[1757251142640,1.78262474,111100.0,111090.0,0.46669543]
[1757251144820,1.96264274,111100.0,111090.0,0.28662123]
[1757251145033,1.96264274,111100.0,111090.0,0.46665543]
[1757251145895,1.96264274,111100.0,111090.0,0.04409123]
[1757251145896,2.20363873,111100.0,111090.0,0.04409123]
[1757251146121,2.20363873,111100.0,111090.0,0.01496537]
[1757251146776,2.20363873,111100.0,111090.0,0.00606]
[1757251146999,2.20363873,111100.0,111090.0,0.003]
[1757251147625,2.20363873,111100.0,111090.0,0.002]
[1757251148063,2.20363873,111100.0,111090.0,0.00504]
[1757251148289,2.20363873,111100.0,111090.0,0.00304]
[1757251148888,2.20363873,111100.0,111090.0,0.00404]
[1757251166255,2.05455873,111100.0,111090.0,0.00404]
[1757251166528,2.20371873,111100.0,111090.0,0.00404]
[1757251167391,2.05455873,111100.0,111090.0,0.00404]
[1757251167638,2.00376397,111100.0,111090.0,0.00404]
[1757251168047,1.85448397,111100.0,111090.0,0.00404]
[1757251169296,1.85448397,111100.0,111090.0,0.006]
[1757251183504,1.85448397,111100.0,111090.0,0.1552]
[1757251183734,1.85448397,111100.0,111090.0,0.15324]
[1757251184788,1.85448397,111100.0,111090.0,0.1552]
[1757251185544,2.00368397,111100.0,111090.0,0.1552]
[1757251186662,2.00368397,111100.0,111090.0,0.15324]
[1757251187895,2.00368397,111100.0,111090.0,0.1552]
[1757251193683,2.00368397,111100.0,111090.0,0.006]
[1757251194321,2.00368397,111100.0,111090.0,0.15324]
[1757251195575,2.00368397,111100.0,111090.0,0.00404]
[1757251196649,2.03070293,111100.0,111090.0,0.00404]
[1757251197463,2.03070293,111100.0,111090.0,0.00609]
[1757251198221,2.03070293,111100.0,111090.0,0.15525]
[1757251198884,2.03070293,111100.0,111090.0,0.00609]
[1757251199118,2.03070293,111100.0,111090.0,0.15525]
[1757251201002,2.03070293,111100.0,111090.0,0.00609]
[1757251202813,2.03070293,111100.0,111090.0,0.00404]
[1757251204894,1.88150293,111100.0,111090.0,0.00609]
[1757251206992,2.03062293,111100.0,111090.0,0.00609]
[1757251208365,2.03062293,111100.0,111090.0,0.00404]
[1757251208794,2.03062293,111100.0,111090.0,0.001]
[1757251209004,2.05156175,111100.0,111090.0,0.001]
[1757251213475,2.22156175,111100.0,111090.0,0.001]
[1757251215188,2.23044003,111100.0,111090.0,0.001]
[1757251216520,2.22156175,111100.0,111090.0,0.001]
[1757251231857,2.07244175,111100.0,111090.0,0.001]
[1757251232065,2.22196175,111100.0,111090.0,0.001]
[1757251234059,2.22192175,111100.0,111090.0,0.001]
[1757251242877,2.00120052,111100.0,111090.0,0.001]
[1757251272110,1.82116617,111100.0,111090.0,0.001]
[1757251272619,1.67168617,111100.0,111090.0,0.001]
[1757251272824,1.82092617,111100.0,111090.0,0.001]
[1757251273651,1.65092617,111100.0,111090.0,0.001]
[1757251275520,1.96092617,111100.0,111090.0,0.001]
[1757251288246,2.01092617,111100.0,111090.0,0.001]
[1757251288450,0.18005041,111080.0,111070.0,0.00186458]
[1757251288695,0.4213264,111080.0,111070.0,0.00492458]
[1757251289114,0.44835052,111080.0,111070.0,0.00492458]
[1757251289311,0.44835052,111080.0,111070.0,0.00186458]
[1757251289526,0.44835052,111080.0,111070.0,0.00492458]
[1757251289770,0.46928934,111080.0,111070.0,0.00492458]
[1757251289957,0.44835052,111080.0,111070.0,0.00186458]
[1757251290521,0.44835052,111080.0,111070.0,0.00286458]
[1757251291171,0.44835052,111080.0,111070.0,0.00186458]
[1757251291385,0.44935052,111080.0,111070.0,0.00186458]
[1757251293693,0.44935052,111080.0,111070.0,0.00492458]
[1757251295862,0.44935052,111080.0,111070.0,0.00186458]
[1757251301240,0.44935052,111080.0,111070.0,0.00492458]
[1757251303526,0.26930011,111080.0,111070.0,0.00186458]
[1757251303744,0.44935052,111080.0,111070.0,0.00492458]
[1757251310330,0.44935052,111080.0,111070.0,0.00186458]
[1757251317269,0.47028934,111080.0,111070.0,0.00186458]
[1757251317637,0.53940934,111080.0,111070.0,0.00186458]
[1757251325349,0.39004934,111080.0,111070.0,0.00186458]
[1757251325669,0.54116934,111080.0,111070.0,0.00186458]
[1757251335718,0.58224349,111080.0,111070.0,0.00186458]
[1757251337539,0.89224349,111080.0,111070.0,0.00186458]
[1757251347854,0.74112349,111080.0,111070.0,0.00186458]
[1757251348056,0.89216349,111080.0,111070.0,0.00186458]
[1757251351869,0.74112349,111080.0,111070.0,0.00186458]
[1757251352079,0.89216349,111080.0,111070.0,0.00186458]
[1757251352417,0.89212349,111080.0,111070.0,0.00186458]
[1757251358882,0.89212349,111080.0,111070.0,0.00186458]
[1757251361273,0.89196349,111080.0,111070.0,0.00186458]
[1757251363820,0.74112349,111080.0,111070.0,0.00186458]
[1757251364060,0.89192349,111080.0,111070.0,0.00186458]
[1757251366424,0.89188349,111080.0,111070.0,0.00186458]
[1757251370463,0.89188349,111080.0,111070.0,0.00498458]
[1757251372719,0.89188349,111080.0,111070.0,0.00186458]
[1757251376818,0.7593788,111080.0,111070.0,0.00186458]
[1757251377027,0.76896862,111080.0,111070.0,0.00186458]
[1757251383071,0.76896862,111080.0,111070.0,0.00498458]
[1757251383701,0.61820862,111080.0,111070.0,0.00701458]
[1757251384051,0.76868862,111080.0,111070.0,0.00701458]
[1757251385895,0.5972698,111080.0,111070.0,0.00701458]
[1757251386104,0.7477498,111080.0,111070.0,0.00701458]
[1757251396916,0.5972698,111080.0,111070.0,0.00701458]
[1757251397171,0.7480298,111080.0,111070.0,0.00701458]
[1757251405141,0.6789098,111080.0,111070.0,0.00701458]
[1757251412064,0.46072638,111080.0,111070.0,0.00701458]
[1757251412302,0.64077679,111080.0,111070.0,0.00701458]
[1757251412518,0.49001679,111080.0,111070.0,0.00701458]
[1757251412741,0.64053679,111080.0,111070.0,0.00701458]
[1757251412955,0.43207622,111080.0,111070.0,0.00701458]
[1757251413189,0.28155622,111080.0,111070.0,0.00701458]
[1757251413409,0.43203622,111080.0,111070.0,0.00701458]
[1757251415025,0.4716041,111080.0,111070.0,0.00701458]
[1757251427839,0.4715241,111080.0,111070.0,0.00701458]
[1757251428459,0.3211241,111080.0,111070.0,0.00701458]
[1757251428657,0.4714841,111080.0,111070.0,0.00701458]
[1757251428899,0.46189428,111080.0,111070.0,0.03403823]
[1757251429319,0.4223264,111080.0,111070.0,0.03403823]
[1757251431790,0.4223264,111080.0,111070.0,0.23403823]
[1757251432620,0.4222864,111080.0,111070.0,0.23403823]
[1757251437101,0.4222864,111080.0,111070.0,0.20701458]
[1757251442081,0.2719664,111080.0,111070.0,0.20701458]
[1757251442282,0.4221664,111080.0,111070.0,0.20701458]
[1757251445163,0.4221264,111080.0,111070.0,0.20701458]
[1757251445657,0.4221264,111080.0,111070.0,0.23403746]
[1757251448853,0.4221264,111080.0,111070.0,0.38411746]
[1757251449977,0.4221264,111080.0,111070.0,0.23403746]
[1757251450163,0.4221264,111080.0,111070.0,0.20701458]
[1757251451389,0.21931158,111080.0,111070.0,0.20701458]
[1757251460787,0.21931158,111080.0,111070.0,0.3870812]
[1757251461534,0.21931158,111080.0,111070.0,0.20701458]
[1757251462085,0.21931158,111080.0,111070.0,0.3870812]
[1757251469468,0.21931158,111080.0,111070.0,0.20701458]
[1757251481078,0.06915158,111080.0,111070.0,0.20701458]
[1757251485910,0.06915158,111080.0,111070.0,0.35681458]
[1757251494099,0.06915158,111080.0,111070.0,0.38383743]
[1757251503476,0.09617443,111080.0,111070.0,0.38383743]
[1757251543805,0.21813443,111090.0,111070.0,0.38383743]
[1757251544027,0.18005041,111080.0,111070.0,0.38071743]
[1757251544539,0.18005041,111080.0,111070.0,0.38376743]
[1757251564522,0.20706182,111090.0,111070.0,0.56383405]
[1757251564728,0.20706182,111090.0,111080.0,0.18524104]
[1757251564940,0.02702285,111090.0,111080.0,0.18299041]
[1757251565166,0.1800342,111090.0,111080.0,0.21198983]
[1757251565394,1.3708133,111100.0,111090.0,0.3800342]
[1757251565610,1.3708133,111100.0,111090.0,0.5347142]
[1757251566529,1.1817944,111100.0,111090.0,0.56173053]
[1757251566755,1.1817944,111100.0,111090.0,0.58490053]
[1757251567417,1.3618124,111100.0,111090.0,0.25510633]
[1757251567641,1.3618124,111100.0,111090.0,0.59406451]
[1757251568062,1.3618124,111100.0,111090.0,0.59506451]
[1757251568460,1.3618124,111100.0,111090.0,0.59706451]
[1757251568699,1.3618124,111100.0,111090.0,0.59778451]
[1757251572910,1.3618124,111100.0,111090.0,0.44730451]
[1757251573117,1.3618124,111100.0,111090.0,0.59802451]
[1757251573744,1.3618124,111100.0,111090.0,0.44730451]
[1757251573954,1.3618124,111100.0,111090.0,0.59798451]
[1757251574484,1.3618124,111100.0,111090.0,0.59794451]
[1757251574887,1.3618124,111100.0,111090.0,0.40874633]
[1757251577273,1.3618124,111100.0,111090.0,0.58878053]
[1757251577515,1.3618124,111100.0,111090.0,0.40874633]
[1757251577979,1.3618124,111100.0,111090.0,0.58878053]
[1757251578855,1.3618124,111100.0,111090.0,0.40874633]
[1757251587325,1.3618124,111100.0,111090.0,0.40862633]
[1757251590430,1.3618124,111100.0,111090.0,0.58866053]
[1757251591824,1.3618124,111100.0,111090.0,0.40862633]
[1757251593765,1.1817944,111100.0,111090.0,0.58866053]
[1757251606485,1.1817944,111100.0,111090.0,0.92866053]
[1757251606782,1.1817944,111100.0,111090.0,1.00488043]
[1757251609667,1.1817944,111100.0,111090.0,1.09679642]
[1757251610947,0.99575789,111100.0,111090.0,1.09679642]
[1757251613470,0.99575789,111100.0,111090.0,1.09679642]
[1757251620801,0.99575789,111100.0,111090.0,0.94627642]
[1757251621016,0.99575789,111100.0,111090.0,1.09715642]
[1757251622078,1.17577589,111100.0,111090.0,0.94627642]
[1757251622294,1.17577589,111100.0,111090.0,1.09735642]
[1757251622567,0.99575789,111100.0,111090.0,1.09735642]
[1757251622982,1.17577589,111100.0,111090.0,1.09735642]
[1757251623605,1.17577589,111100.0,111090.0,0.94627642]
[1757251623835,1.17577589,111100.0,111090.0,1.09735642]
[1757251624255,1.17577589,111100.0,111090.0,0.94627642]
[1757251624466,1.17577589,111100.0,111090.0,1.09735642]
[1757251624675,0.99575789,111100.0,111090.0,1.09735642]
[1757251624889,1.17577589,111100.0,111090.0,1.09735642]
[1757251625493,1.17577589,111100.0,111090.0,0.94627642]
[1757251625701,1.17577589,111100.0,111090.0,1.09731642]
[1757251625912,1.17577589,111100.0,111090.0,1.09735642]
[1757251628757,1.17577589,111100.0,111090.0,0.82544623]
[1757251628973,1.17577589,111100.0,111090.0,1.00548043]
[1757251629177,1.17577589,111100.0,111090.0,0.82544623]
[1757251630168,1.17577589,111100.0,111090.0,1.00548043]
[1757251640296,1.17577589,111100.0,111090.0,1.07460043]
[1757251659466,0.99575789,111100.0,111090.0,1.07460043]
[1757251676100,0.99575789,111100.0,111090.0,0.92348043]
[1757251676286,0.99575789,111100.0,111090.0,1.07460043]
[1757251676688,0.99575789,111100.0,111090.0,0.92348043]
[1757251676899,0.99575789,111100.0,111090.0,1.07456043]
[1757251678055,0.99575789,111100.0,111090.0,0.92348043]
[1757251678282,0.99575789,111100.0,111090.0,1.07456043]
[1757251678699,0.99575789,111100.0,111090.0,0.92348043]
[1757251678913,0.99575789,111100.0,111090.0,1.07452043]
[1757251681283,0.99575789,111100.0,111090.0,1.07456043]
[1757251682295,0.99575789,111100.0,111090.0,0.92348043]
[1757251682492,0.99575789,111100.0,111090.0,1.07456043]
[1757251684022,0.99575789,111100.0,111090.0,0.92348043]
[1757251684225,0.99575789,111100.0,111090.0,1.07460043]
[1757251684975,0.99575789,111100.0,111090.0,0.92348043]
[1757251685188,0.99575789,111100.0,111090.0,1.07460043]
[1757251686629,0.99575789,111100.0,111090.0,0.92348043]
[1757251686857,0.99575789,111100.0,111090.0,1.07460043]
[1757251692289,0.7916252,111100.0,111090.0,1.07460043]
[1757251695719,0.7916252,111100.0,111090.0,1.07360043]
[1757251695907,0.7916252,111100.0,111090.0,1.07160043]
[1757251696238,0.7916252,111100.0,111090.0,1.07660043]
[1757251707503,0.59996326,111100.0,111090.0,1.07660043]
[1757251715608,0.59996326,111100.0,111090.0,0.92548043]
[1757251715756,0.59996326,111100.0,111090.0,1.07644043]
[1757251722080,0.59996326,111100.0,111090.0,0.92548043]
[1757251722263,0.59996326,111100.0,111090.0,1.07636043]
[1757251726964,0.59996326,111100.0,111090.0,0.92548043]
[1757251727180,0.59996326,111100.0,111090.0,1.07632043]
[1757251732419,0.59996326,111100.0,111090.0,1.16823642]
[1757251733222,0.59996326,111100.0,111090.0,1.01739642]
[1757251733440,0.59996326,111100.0,111090.0,1.31823642]
[1757251747660,0.59996326,111100.0,111090.0,1.16739642]
[1757251747955,0.59996326,111100.0,111090.0,1.31867642]
[1757251760944,0.59996326,111100.0,111090.0,1.16739642]
[1757251761143,0.59996326,111100.0,111090.0,1.31855642]
[1757251795852,0.40136737,111100.0,111090.0,1.31855642]
[1757251805112,0.40136737,111100.0,111090.0,1.16739642]
[1757251805329,0.40136737,111100.0,111090.0,1.31819642]
[1757251851188,0.23117868,111100.0,111090.0,1.31819642]
[1757251856171,0.23117868,111100.0,111090.0,1.31791642]
[1757251864388,0.23117868,111100.0,111090.0,1.31791642]
[1757251875409,0.03463076,111100.0,111090.0,1.31791642]
[1757251877484,0.03463076,111100.0,111090.0,2.08791642]
[1757251894371,0.03463076,111100.0,111090.0,1.31791642]
[1757251902567,0.03463076,111100.0,111090.0,1.31783642]
[1757251905400,0.03463076,111100.0,111090.0,1.16739642]
[1757251905644,0.03463076,111100.0,111090.0,1.31783642]
[1757251908692,0.07594213,111120.0,111110.0,0.5300018]
[1757251908973,0.07594213,111120.0,111110.0,0.6834818]
[1757251909626,0.07594213,111120.0,111110.0,0.71049266]
[1757251909849,0.07594213,111120.0,111110.0,0.71251266]
[1757251910086,0.07694213,111120.0,111110.0,0.71255915]
[1757251911818,0.07694213,111120.0,111110.0,0.71251915]
[1757251922608,0.001,111120.0,111110.0,0.78873905]
[1757251923356,0.18898268,111130.0,111120.0,0.1799856]
[1757251923568,0.18898268,111130.0,111120.0,0.3335756]
[1757251924469,0.18898268,111130.0,111120.0,0.36253456]
[1757251926073,0.18998268,111130.0,111120.0,0.36253456]
[1757251926272,0.18998268,111130.0,111120.0,0.37169781]
[1757251931268,0.001,111130.0,111120.0,0.37169781]
[1757251932450,0.1809694,111130.0,111120.0,0.37169781]
[1757251933527,0.001,111130.0,111120.0,0.37169781]
[1757251933701,0.1809694,111130.0,111120.0,0.37169781]
[1757251935076,0.001,111130.0,111120.0,0.37169781]
[1757251935463,0.1809694,111130.0,111120.0,0.37169781]
[1757251936376,0.001,111130.0,111120.0,0.37169781]
[1757251937147,0.36708412,111150.0,111140.0,0.2]
[1757251937361,0.45900011,111150.0,111140.0,0.2]
[1757251938806,0.46100011,111150.0,111140.0,0.2]
[1757251939918,0.46400011,111150.0,111140.0,0.2]
[1757251946791,0.46396011,111150.0,111140.0,0.2]
[1757251948130,0.31364011,111150.0,111140.0,0.2]
[1757251948336,0.46396011,111150.0,111140.0,0.2]
[1757251951662,0.30460997,111150.0,111140.0,0.22700728]
[1757251952954,0.30460997,111150.0,111140.0,0.56044049]
[1757251953181,0.15428997,111150.0,111140.0,0.56239049]
[1757251954019,0.15128997,111150.0,111140.0,0.56239049]
[1757251954450,0.15228997,111150.0,111140.0,0.56239049]
[1757251954662,0.15028997,111150.0,111140.0,0.56239049]
[1757251955090,0.15128997,111150.0,111140.0,0.56239049]
[1757251956487,0.18193702,111150.0,111140.0,0.56239049]
[1757251967035,0.18193702,111150.0,111140.0,0.41207049]
[1757251967233,0.18193702,111150.0,111140.0,0.56231049]
[1757251970468,0.18093702,111150.0,111140.0,0.56231049]
[1757251970690,0.18903792,111160.0,111140.0,0.56331049]
[1757251970915,0.18903792,111160.0,111150.0,0.0032]
[1757251971355,0.18903792,111160.0,111150.0,0.03020315]
[1757251972179,0.18903792,111160.0,111150.0,0.03024964]
[1757251974732,0.18903792,111160.0,111150.0,0.00523649]
[1757251976351,0.18903792,111160.0,111150.0,0.15547649]
[1757251976527,0.18903792,111160.0,111150.0,0.15348649]
[1757251977586,0.18903792,111160.0,111150.0,0.33342351]
[1757251979445,0.18903792,111160.0,111150.0,0.15348649]
[1757251986251,0.18903792,111160.0,111150.0,0.33342351]
[1757251986668,0.18903792,111160.0,111150.0,0.48541351]
[1757251986888,0.17990465,111170.0,111160.0,0.37992083]
[1757251987101,0.21699529,111180.0,111160.0,0.38191083]
[1757251987325,0.18999433,111180.0,111170.0,0.1502]
[1757251987536,0.18999433,111180.0,111170.0,0.1534]
[1757251988796,0.18999433,111180.0,111170.0,0.1623315]
[1757252005077,0.18999433,111180.0,111170.0,0.1644315]
[1757252005522,0.18999433,111180.0,111170.0,0.1634315]
[1757252010607,0.18999433,111180.0,111170.0,0.34333615]
[1757252012157,0.18999433,111180.0,111170.0,0.1634315]
[1757252012555,0.18999433,111180.0,111170.0,0.0142315]
[1757252012762,0.18999433,111180.0,111170.0,0.1643115]
[1757252014165,0.18999433,111180.0,111170.0,0.1622115]
[1757252015490,0.18999433,111180.0,111170.0,0.1643115]
[1757252017620,0.18999433,111180.0,111170.0,0.34421615]
[1757252022965,0.18999433,111180.0,111170.0,0.34417615]
[1757252024318,0.18988846,111180.0,111170.0,0.34413615]
[1757252024527,0.18988846,111180.0,111170.0,0.49417615]
[1757252025589,0.01,111180.0,111170.0,0.49417615]
[1757252025788,0.01,111180.0,111170.0,0.5211734]
[1757252026944,0.18988846,111180.0,111170.0,0.5211734]
[1757252029638,0.18988846,111180.0,111170.0,0.49417615]
[1757252030423,0.01,111180.0,111170.0,0.49417615]
[1757252031434,0.18988846,111180.0,111170.0,0.49417615]
[1757252033093,0.18988846,111180.0,111170.0,0.34413615]
[1757252033325,0.18988846,111180.0,111170.0,0.49417615]
[1757252034541,0.18988846,111180.0,111170.0,0.34413615]
[1757252034774,0.18988846,111180.0,111170.0,0.49417615]
[1757252035248,0.18988846,111180.0,111170.0,0.52117271]
[1757252039248,0.18988846,111180.0,111170.0,0.52217271]
[1757252039687,0.18988846,111180.0,111170.0,0.49517615]
[1757252040529,0.18988846,111180.0,111170.0,0.49617615]
[1757252046974,0.18988846,111180.0,111170.0,0.56521615]
[1757252055394,0.18988846,111180.0,111170.0,0.41517615]
[1757252055616,0.18988846,111180.0,111170.0,0.56513615]
[1757252057197,0.01,111180.0,111170.0,0.56513615]
[1757252061576,0.18988846,111180.0,111170.0,0.56513615]
[1757252064219,0.01,111180.0,111170.0,0.56513615]
[1757252064449,0.18988846,111180.0,111170.0,0.56513615]
[1757252064960,0.01,111180.0,111170.0,0.56513615]
[1757252065384,0.18988846,111180.0,111170.0,0.59213227]
[1757252065595,0.01,111180.0,111170.0,0.59213227]
[1757252068663,0.18988846,111180.0,111170.0,0.59213227]
[1757252069449,0.01,111180.0,111170.0,0.66835217]
[1757252070298,0.01,111180.0,111170.0,1.00835217]
[1757252071391,0.01,111180.0,111170.0,1.00635217]
[1757252071859,0.01,111180.0,111170.0,1.00835217]
[1757252073610,0.01,111180.0,111170.0,1.00935217]
[1757252085817,0.01,111180.0,111170.0,0.85939217]
[1757252086041,0.01,111180.0,111170.0,1.00927217]
[1757252096106,0.01,111180.0,111170.0,0.85939217]
[1757252096332,0.01,111180.0,111170.0,1.00927217]
[1757252102367,0.01,111180.0,111170.0,1.10118816]
[1757252114255,0.01,111180.0,111170.0,1.10118816]
[1757252121043,0.01,111180.0,111170.0,0.95130816]
[1757252121461,0.01,111180.0,111170.0,1.10174816]
[1757252127963,0.01,111180.0,111170.0,1.12538816]
[1757252129484,0.01,111180.0,111170.0,1.12238816]
[1757252129693,0.01,111180.0,111170.0,1.12538816]
[1757252129898,0.01,111180.0,111170.0,1.12738816]
[1757252130219,0.01,111180.0,111170.0,1.14832698]
[1757252135032,0.01,111180.0,111170.0,0.99788698]
[1757252135221,0.01,111180.0,111170.0,1.14848698]
[1757252136528,0.01,111180.0,111170.0,0.99788698]
[1757252136742,0.01,111180.0,111170.0,1.14852698]
[1757252137583,0.01,111180.0,111170.0,0.99788698]
[1757252137974,0.01,111180.0,111170.0,1.14856698]
[1757252154482,0.01,111180.0,111170.0,1.14828698]
[1757252159334,0.01,111180.0,111170.0,0.99788698]
[1757252159561,0.01,111180.0,111170.0,1.14828698]
[1757252159801,0.01,111180.0,111170.0,0.87708826]
[1757252160015,0.01,111180.0,111170.0,1.10370816]
[1757252161928,0.01,111180.0,111170.0,1.14766698]
[1757252162170,0.01,111180.0,111170.0,1.41416698]
[1757252162761,0.01,111180.0,111170.0,1.14766698]
[1757252163153,0.00543605,111180.0,111170.0,1.14766698]
[1757252164642,0.00543605,111180.0,111170.0,1.34766698]
[1757252166090,0.00543605,111180.0,111170.0,1.39766698]
[1757252166264,0.00543605,111180.0,111170.0,1.79766698]
[1757252168111,0.00543605,111180.0,111170.0,1.79466698]
[1757252169204,0.00543605,111180.0,111170.0,2.06316698]
[1757252173130,0.0002,111200.0,111190.0,0.60609219]
[1757252173355,0.0002,111200.0,111190.0,1.45478818]
[1757252173609,0.0002,111200.0,111190.0,1.45680818]
[1757252173830,0.0002,111200.0,111190.0,1.90991064]
[1757252174502,0.0002,111200.0,111190.0,1.90995713]
[1757252174975,0.0002,111200.0,111190.0,1.49317713]
[1757252175186,0.0002,111200.0,111190.0,1.64345713]
[1757252175600,0.0002,111200.0,111190.0,1.29417713]
[1757252175833,0.0002,111200.0,111190.0,1.06535595]
[1757252176040,0.0002,111200.0,111190.0,1.06735595]
[1757252176668,0.0002,111200.0,111190.0,1.06635595]
[1757252177194,0.0002,111200.0,111190.0,1.06735595]
[1757252184069,0.0002,111200.0,111190.0,0.91711595]
[1757252184274,0.0002,111200.0,111190.0,1.06723595]
[1757252186954,0.0002,111200.0,111190.0,1.06719595]
[1757252188513,0.0002,111200.0,111190.0,1.06715595]
[1757252189219,1.32481371,111210.0,111200.0,0.17985611]
[1757252189532,1.32481371,111210.0,111200.0,0.4957821]
[1757252189969,1.32481371,111210.0,111200.0,0.52276713]
[1757252191404,1.32481371,111210.0,111200.0,0.52376713]
[1757252194573,1.32481371,111210.0,111200.0,1.02376713]
[1757252201675,1.32481371,111210.0,111200.0,1.22376713]
[1757252210177,1.32481371,111210.0,111200.0,1.24643713]
[1757252214184,1.32481371,111210.0,111200.0,1.26737595]
[1757252214388,1.32481371,111210.0,111200.0,1.26729595]
[1757252214594,1.32481371,111210.0,111200.0,1.11733595]
[1757252214799,1.32481371,111210.0,111200.0,1.26729595]
[1757252215802,1.32481371,111210.0,111200.0,1.11733595]
[1757252216000,1.32481371,111210.0,111200.0,1.26729595]
[1757252219654,1.32481371,111210.0,111200.0,1.53379595]
[1757252225977,1.32481371,111210.0,111200.0,1.38383595]
[1757252226189,1.32481371,111210.0,111200.0,1.53379595]
[1757252231501,1.32481371,111210.0,111200.0,1.51112595]
[1757252235252,1.32481371,111210.0,111200.0,1.53379595]
[1757252236173,1.32481371,111210.0,111200.0,1.87379595]
[1757252249508,1.32481371,111210.0,111200.0,2.27379595]
[1757252253277,1.32481371,111210.0,111200.0,1.87379595]
[1757252262139,1.32481371,111210.0,111200.0,2.27379595]
[1757252262983,1.32481371,111210.0,111200.0,2.27279595]
[1757252263505,1.32481371,111210.0,111200.0,2.27379595]
[1757252264246,1.32481371,111210.0,111200.0,2.27375595]
[1757252264744,1.32481371,111210.0,111200.0,2.27475595]
[1757252278261,1.32481371,111210.0,111200.0,2.31552691]
[1757252281341,1.32481371,111210.0,111200.0,1.85208595]
[1757252281974,1.32481371,111210.0,111200.0,1.58558595]
[1757252282576,1.32481371,111210.0,111200.0,1.56464713]
[1757252285170,1.32481371,111210.0,111200.0,1.41472713]
[1757252285377,1.50465365,111210.0,111200.0,1.28601703]
[1757252285594,1.50465365,111210.0,111200.0,1.43593703]
[1757252291868,1.32481371,111210.0,111200.0,1.43894703]
[1757252293139,1.50465365,111210.0,111200.0,1.43894703]
[1757252294068,1.32481371,111210.0,111200.0,1.43894703]
[1757252295721,1.50465365,111210.0,111200.0,1.43894703]
[1757252296151,1.32481371,111210.0,111200.0,1.44103703]
[1757252296479,1.32481371,111210.0,111200.0,1.43894703]
[1757252298356,1.32481371,111210.0,111200.0,1.44103703]
[1757252298790,1.50465365,111210.0,111200.0,1.43593703]
[1757252303551,1.50465365,111210.0,111200.0,1.43888703]
[1757252313937,1.50465365,111210.0,111200.0,1.44105703]
[1757252314190,1.32481371,111210.0,111200.0,1.44105703]
[1757252314615,1.32481371,111210.0,111200.0,1.43888703]
[1757252314844,1.50465365,111210.0,111200.0,1.43888703]
[1757252315425,1.32481371,111210.0,111200.0,1.43888703]
[1757252316712,1.32481371,111210.0,111200.0,1.44105703]
[1757252317418,1.32481371,111210.0,111200.0,1.43888703]
[1757252319618,1.50465365,111210.0,111200.0,1.43888703]
[1757252320072,1.32481371,111210.0,111200.0,1.43888703]
[1757252321219,1.32481371,111210.0,111200.0,1.44105703]
[1757252321547,1.32481371,111210.0,111200.0,1.43888703]
[1757252321778,1.32481371,111210.0,111200.0,1.44105703]
[1757252325991,1.32481371,111210.0,111200.0,1.45904703]